[Event "Titled Tuesday Blitz December 27 Early 2022"]
[White "Jimenez Almeida, Luis David"]
[Black "Ardila, Oscar Humberto"]
[WhiteFideId "22242244"]
[BlackFideId "4404742"]
[WhiteElo "2242"]
[BlackElo "1982"]
[Result "1-0"]
[Round "04"]
[TimeControl "180+2"]
[Date "2022.12.27"]
[WhiteClock "0:00:34"]
[BlackClock "0:01:07"]

1. e4 {[%clk 0:03:00]}  e5 {[%clk 0:02:59]} 2. Nf3 {[%clk 0:03:00]}  Nc6 {[%clk 0:02:59]} 3. Bb5 {[%clk 0:03:00]}  a6 {[%clk 0:02:59]} 4. Ba4 {[%clk 0:03:00]}  Nf6 {[%clk 0:02:59]} 5. O-O {[%clk 0:03:00]}  b5 {[%clk 0:02:59]} 6. Bb3 {[%clk 0:02:59]}  Be7 {[%clk 0:02:59]} 7. Re1 {[%clk 0:02:59]}  O-O {[%clk 0:02:57]} 8. c3 {[%clk 0:02:58]}  d6 {[%clk 0:02:57]} 9. d3 {[%clk 0:02:58]}  Bg4 {[%clk 0:02:56]} 10. h3 {[%clk 0:02:57]}  Bh5 {[%clk 0:02:55]} 11. Nbd2 {[%clk 0:02:57]}  Na5 {[%clk 0:02:56]} 12. Bc2 {[%clk 0:02:56]}  c5 {[%clk 0:02:56]} 13. Nf1 {[%clk 0:02:57]}  c4 {[%clk 0:02:56]} 14. d4 {[%clk 0:02:44]}  Nc6 {[%clk 0:02:56]} 15. Ng3 {[%clk 0:02:40]}  Bg6 {[%clk 0:02:55]} 16. d5 {[%clk 0:02:34]}  Nb8 {[%clk 0:02:53]} 17. Nh4 {[%clk 0:02:29]}  Re8 {[%clk 0:02:51]} 18. Nhf5 {[%clk 0:02:28]}  Bf8 {[%clk 0:02:51]} 19. Bg5 {[%clk 0:02:27]}  h6 {[%clk 0:02:46]} 20. Be3 {[%clk 0:02:21]}  Nbd7 {[%clk 0:02:39]} 21. a4 {[%clk 0:02:02]}  Rb8 {[%clk 0:02:26]} 22. axb5 {[%clk 0:01:53]}  axb5 {[%clk 0:02:25]} 23. Ra7 {[%clk 0:01:50]}  Nc5 {[%clk 0:02:20]} 24. Bxc5 {[%clk 0:01:42]}  dxc5 {[%clk 0:02:20]} 25. Qf3 {[%clk 0:01:36]}  Qb6 {[%clk 0:02:14]} 26. Rea1 {[%clk 0:01:35]}  Rb7 {[%clk 0:02:06]} 27. R7a6 {[%clk 0:01:10]}  Qd8 {[%clk 0:02:03]} 28. Nxh6+ {[%clk 0:01:10]}  Kh7 {[%clk 0:02:01]} 29. Ng4 {[%clk 0:01:06]}  Nxg4 {[%clk 0:01:56]} 30. Qxg4 {[%clk 0:01:06]}  b4 {[%clk 0:01:49]} 31. h4 {[%clk 0:01:04]}  Kg8 {[%clk 0:01:41]} 32. h5 {[%clk 0:01:04]}  Bh7 {[%clk 0:01:41]} 33. h6 {[%clk 0:01:04]}  Bg6 {[%clk 0:01:36]} 34. Ba4 {[%clk 0:01:00]}  gxh6 {[%clk 0:01:31]} 35. Rxg6+ {[%clk 0:00:54]}  fxg6 {[%clk 0:01:27]} 36. Qxg6+ {[%clk 0:00:55]}  Rg7 {[%clk 0:01:26]} 37. Qxe8 {[%clk 0:00:53]}  Qxe8 {[%clk 0:01:26]} 38. Bxe8 {[%clk 0:00:54]}  Rb7 {[%clk 0:01:20]} 39. Bc6 {[%clk 0:00:50]}  Rb6 {[%clk 0:01:20]} 40. Nf5 {[%clk 0:00:48]}  Kf7 {[%clk 0:01:18]} 41. Ra7+ {[%clk 0:00:47]}  Kf6 {[%clk 0:01:18]} 42. Ra8 {[%clk 0:00:44]}  Be7 {[%clk 0:01:13]} 43. Rh8 {[%clk 0:00:42]}  bxc3 {[%clk 0:01:10]} 44. bxc3 {[%clk 0:00:40]}  Rb1+ {[%clk 0:01:09]} 45. Kh2 {[%clk 0:00:40]}  Rc1 {[%clk 0:01:10]} 46. Rxh6+ {[%clk 0:00:39]}  Kg5 {[%clk 0:01:10]} 47. Rh3 {[%clk 0:00:35]}  Re1 {[%clk 0:01:07]} 48. Nxe7 {[%clk 0:00:34]} 1-0


[Site "https://www.chess.com"]

[Event "Titled Tuesday Blitz December 27 Early 2022"]
[White "Jimenez, Joaquin"]
[Black "Postnikov, Daniil"]
[WhiteFideId "109860"]
[BlackFideId "4166329"]
[WhiteElo "2195"]
[BlackElo "2360"]
[Result "0-1"]
[Round "04"]
[TimeControl "180+2"]
[Date "2022.12.27"]
[WhiteClock "0:00:12"]
[BlackClock "0:00:27"]

1. e4 {[%clk 0:03:00]}  e6 {[%clk 0:02:58]} 2. d3 {[%clk 0:03:00]}  d5 {[%clk 0:02:59]} 3. Nd2 {[%clk 0:03:00]}  Nf6 {[%clk 0:02:59]} 4. Ngf3 {[%clk 0:03:00]}  c5 {[%clk 0:02:59]} 5. g3 {[%clk 0:03:00]}  g6 {[%clk 0:02:59]} 6. Bg2 {[%clk 0:02:59]}  Bg7 {[%clk 0:03:00]} 7. O-O {[%clk 0:02:59]}  O-O {[%clk 0:03:00]} 8. c3 {[%clk 0:02:56]}  Nc6 {[%clk 0:03:00]} 9. e5 {[%clk 0:02:54]}  Ng4 {[%clk 0:03:00]} 10. d4 {[%clk 0:02:54]}  cxd4 {[%clk 0:02:59]} 11. cxd4 {[%clk 0:02:54]}  f6 {[%clk 0:02:59]} 12. exf6 {[%clk 0:02:51]}  Qxf6 {[%clk 0:02:50]} 13. Nb3 {[%clk 0:02:44]}  Kh8 {[%clk 0:02:38]} 14. Bg5 {[%clk 0:02:42]}  Qf7 {[%clk 0:02:37]} 15. h3 {[%clk 0:02:27]}  Nf6 {[%clk 0:02:31]} 16. Ne5 {[%clk 0:02:24]}  Nxe5 {[%clk 0:02:30]} 17. dxe5 {[%clk 0:02:25]}  Ne4 {[%clk 0:02:27]} 18. Bxe4 {[%clk 0:02:13]}  dxe4 {[%clk 0:02:28]} 19. Bf4 {[%clk 0:02:11]}  Qf5 {[%clk 0:02:24]} 20. Qg4 {[%clk 0:02:09]}  h6 {[%clk 0:02:16]} 21. Rfe1 {[%clk 0:01:54]}  g5 {[%clk 0:02:13]} 22. Be3 {[%clk 0:01:49]}  Bxe5 {[%clk 0:02:10]} 23. Rad1 {[%clk 0:01:30]}  Bxb2 {[%clk 0:01:59]} 24. Nd4 {[%clk 0:00:57]}  Qxg4 {[%clk 0:01:57]} 25. hxg4 {[%clk 0:00:57]}  e5 {[%clk 0:01:58]} 26. Nb5 {[%clk 0:00:53]}  Bxg4 {[%clk 0:01:56]} 27. Rb1 {[%clk 0:00:48]}  a6 {[%clk 0:01:46]} 28. Rxb2 {[%clk 0:00:40]}  axb5 {[%clk 0:01:45]} 29. Rxb5 {[%clk 0:00:40]}  Rf7 {[%clk 0:01:41]} 30. Rxe5 {[%clk 0:00:37]}  Bf3 {[%clk 0:01:41]} 31. Ra1 {[%clk 0:00:27]}  Kh7 {[%clk 0:01:33]} 32. a4 {[%clk 0:00:26]}  Rd7 {[%clk 0:01:29]} 33. g4 {[%clk 0:00:19]}  Rad8 {[%clk 0:01:16]} 34. Kh2 {[%clk 0:00:18]}  Rd1 {[%clk 0:01:14]} 35. Rxd1 {[%clk 0:00:17]}  Rxd1 {[%clk 0:01:15]} 36. Re7+ {[%clk 0:00:15]}  Kg8 {[%clk 0:01:15]} 37. Rxb7 {[%clk 0:00:15]}  Rh1+ {[%clk 0:00:49]} 38. Kg3 {[%clk 0:00:14]}  Rg1+ {[%clk 0:00:50]} 39. Kh3 {[%clk 0:00:14]}  Bxg4+ {[%clk 0:00:44]} 40. Kh2 {[%clk 0:00:13]}  Ra1 {[%clk 0:00:42]} 41. Rb8+ {[%clk 0:00:13]}  Kf7 {[%clk 0:00:41]} 42. Rb7+ {[%clk 0:00:13]}  Kg6 {[%clk 0:00:40]} 43. Rb4 {[%clk 0:00:12]}  Bf3 {[%clk 0:00:36]} 44. Kg3 {[%clk 0:00:12]}  Kh5 {[%clk 0:00:34]} 45. Rc4 {[%clk 0:00:13]}  Rg1+ {[%clk 0:00:32]} 46. Kh2 {[%clk 0:00:12]}  Rg2+ {[%clk 0:00:31]} 47. Kh1 {[%clk 0:00:13]}  Rxf2+ {[%clk 0:00:29]} 48. Kg1 {[%clk 0:00:13]}  Re2 {[%clk 0:00:29]} 49. Bf2 {[%clk 0:00:13]}  e3 {[%clk 0:00:28]} 50. Bxe3 {[%clk 0:00:11]}  Rxe3 {[%clk 0:00:28]} 51. Kf2 {[%clk 0:00:12]}  Ra3 {[%clk 0:00:27]} 0-1


[Site "https://www.chess.com"]

[Event "Titled Tuesday Blitz December 27 Early 2022"]
[White "Johnson, Ben"]
[Black "Bochnicka, Vladimir"]
[WhiteFideId "2010917"]
[BlackFideId "14943450"]
[WhiteElo "1961"]
[BlackElo "2327"]
[Result "0-1"]
[Round "04"]
[TimeControl "180+2"]
[Date "2022.12.27"]
[WhiteClock "0:00:01"]
[BlackClock "0:00:11"]

1. Nf3 {[%clk 0:02:59]}  c5 {[%clk 0:02:58]} 2. c4 {[%clk 0:02:59]}  Nc6 {[%clk 0:02:58]} 3. Nc3 {[%clk 0:02:55]}  g6 {[%clk 0:02:58]} 4. e3 {[%clk 0:02:53]}  Nf6 {[%clk 0:02:47]} 5. d4 {[%clk 0:02:51]}  cxd4 {[%clk 0:02:48]} 6. exd4 {[%clk 0:02:52]}  d5 {[%clk 0:02:49]} 7. cxd5 {[%clk 0:02:38]}  Nxd5 {[%clk 0:02:48]} 8. Bc4 {[%clk 0:02:37]}  Nb6 {[%clk 0:02:37]} 9. Bb5 {[%clk 0:02:24]}  Bg7 {[%clk 0:02:28]} 10. O-O {[%clk 0:01:56]}  O-O {[%clk 0:02:27]} 11. h3 {[%clk 0:01:51]}  Nxd4 {[%clk 0:02:22]} 12. Nxd4 {[%clk 0:01:46]}  Qxd4 {[%clk 0:02:20]} 13. Be3 {[%clk 0:01:43]}  Qxd1 {[%clk 0:02:20]} 14. Raxd1 {[%clk 0:01:36]}  Be6 {[%clk 0:02:19]} 15. a3 {[%clk 0:01:29]}  Nc4 {[%clk 0:02:10]} 16. Bxc4 {[%clk 0:01:00]}  Bxc4 {[%clk 0:02:11]} 17. Rfe1 {[%clk 0:01:00]}  Be6 {[%clk 0:01:41]} 18. Re2 {[%clk 0:00:37]}  a6 {[%clk 0:01:28]} 19. Nd5 {[%clk 0:00:36]}  Bxd5 {[%clk 0:01:24]} 20. Rxd5 {[%clk 0:00:37]}  Rfd8 {[%clk 0:01:23]} 21. Rc5 {[%clk 0:00:26]}  Rac8 {[%clk 0:01:18]} 22. b4 {[%clk 0:00:26]}  Rxc5 {[%clk 0:01:13]} 23. Bxc5 {[%clk 0:00:26]}  e6 {[%clk 0:01:12]} 24. a4 {[%clk 0:00:24]}  h5 {[%clk 0:00:56]} 25. g3 {[%clk 0:00:24]}  Rd1+ {[%clk 0:00:55]} 26. Kg2 {[%clk 0:00:24]}  Ra1 {[%clk 0:00:56]} 27. Rd2 {[%clk 0:00:19]}  Rxa4 {[%clk 0:00:44]} 28. Rd8+ {[%clk 0:00:19]}  Kh7 {[%clk 0:00:44]} 29. Rd7 {[%clk 0:00:19]}  b6 {[%clk 0:00:40]} 30. Bd6 {[%clk 0:00:07]}  g5 {[%clk 0:00:19]} 31. Rxf7 {[%clk 0:00:04]}  Kg6 {[%clk 0:00:19]} 32. Rb7 {[%clk 0:00:05]}  b5 {[%clk 0:00:19]} 33. Bc5 {[%clk 0:00:01]}  Be5 {[%clk 0:00:11]} 0-1


[Site "https://www.chess.com"]

[Event "Titled Tuesday Blitz December 27 Early 2022"]
[White "Jones, Gawain C B"]
[Black "Pinheiro, Iung Alicio de O."]
[WhiteFideId "409561"]
[BlackFideId "2104350"]
[WhiteElo "2618"]
[BlackElo "2306"]
[Result "1-0"]
[Round "04"]
[TimeControl "180+2"]
[Date "2022.12.27"]
[WhiteClock "0:00:51"]
[BlackClock "0:00:01"]

1. Nf3 {[%clk 0:02:56]}  c5 {[%clk 0:02:59]} 2. c4 {[%clk 0:02:56]}  g6 {[%clk 0:02:58]} 3. d4 {[%clk 0:02:54]}  cxd4 {[%clk 0:02:57]} 4. Nxd4 {[%clk 0:02:55]}  Nc6 {[%clk 0:02:57]} 5. e4 {[%clk 0:02:54]}  Nf6 {[%clk 0:02:57]} 6. Nc3 {[%clk 0:02:52]}  d6 {[%clk 0:02:57]} 7. Be2 {[%clk 0:02:51]}  Nxd4 {[%clk 0:02:58]} 8. Qxd4 {[%clk 0:02:50]}  Bg7 {[%clk 0:02:58]} 9. Be3 {[%clk 0:02:51]}  O-O {[%clk 0:02:59]} 10. Qd2 {[%clk 0:02:51]}  a5 {[%clk 0:02:58]} 11. O-O {[%clk 0:02:51]}  a4 {[%clk 0:02:59]} 12. Bd3 {[%clk 0:02:48]}  Be6 {[%clk 0:02:47]} 13. Rac1 {[%clk 0:02:46]}  Qa5 {[%clk 0:02:46]} 14. Nd5 {[%clk 0:02:35]}  Bxd5 {[%clk 0:01:10]} 15. Qxa5 {[%clk 0:02:33]}  Rxa5 {[%clk 0:01:10]} 16. cxd5 {[%clk 0:02:34]}  Ng4 {[%clk 0:01:05]} 17. Bb6 {[%clk 0:02:30]}  Raa8 {[%clk 0:01:03]} 18. Be2 {[%clk 0:02:30]}  Nf6 {[%clk 0:01:00]} 19. f3 {[%clk 0:02:26]}  Nd7 {[%clk 0:01:00]} 20. Be3 {[%clk 0:02:26]}  Bxb2 {[%clk 0:00:58]} 21. Rb1 {[%clk 0:02:21]}  a3 {[%clk 0:00:58]} 22. Bb5 {[%clk 0:02:18]}  Ne5 {[%clk 0:00:57]} 23. Bc1 {[%clk 0:02:06]}  Bd4+ {[%clk 0:00:45]} 24. Kh1 {[%clk 0:02:06]}  Rfc8 {[%clk 0:00:45]} 25. f4 {[%clk 0:02:01]}  Ng4 {[%clk 0:00:45]} 26. Bd7 {[%clk 0:02:00]}  Nf2+ {[%clk 0:00:42]} 27. Rxf2 {[%clk 0:02:00]}  Bxf2 {[%clk 0:00:43]} 28. Bxc8 {[%clk 0:02:00]}  Rxc8 {[%clk 0:00:44]} 29. Bxa3 {[%clk 0:01:59]}  Rc2 {[%clk 0:00:41]} 30. Rxb7 {[%clk 0:01:53]}  Rxa2 {[%clk 0:00:41]} 31. Bb2 {[%clk 0:01:48]}  f6 {[%clk 0:00:40]} 32. g3 {[%clk 0:01:46]}  Kf7 {[%clk 0:00:40]} 33. e5 {[%clk 0:01:38]}  fxe5 {[%clk 0:00:37]} 34. fxe5 {[%clk 0:01:39]}  dxe5 {[%clk 0:00:37]} 35. d6 {[%clk 0:01:34]}  Bc5 {[%clk 0:00:37]} 36. Rxe7+ {[%clk 0:01:31]}  Kf6 {[%clk 0:00:32]} 37. Bxe5+ {[%clk 0:01:31]}  Kf5 {[%clk 0:00:32]} 38. Bf4 {[%clk 0:01:23]}  Kg4 {[%clk 0:00:25]} 39. h3+ {[%clk 0:01:13]}  Kxh3 {[%clk 0:00:15]} 40. Rxh7+ {[%clk 0:01:12]}  Kg4 {[%clk 0:00:15]} 41. d7 {[%clk 0:01:00]}  Ra1+ {[%clk 0:00:08]} 42. Kg2 {[%clk 0:01:00]}  Rd1 {[%clk 0:00:09]} 43. Bc7 {[%clk 0:00:51]}  Rd2+ {[%clk 0:00:07]} 44. Kf1 {[%clk 0:00:51]}  Rd1+ {[%clk 0:00:01]} 45. Ke2 {[%clk 0:00:51]} 1-0


[Site "https://www.chess.com"]

[Event "Titled Tuesday Blitz December 27 Early 2022"]
[White "Kahlert, Thomas"]
[Black "Clawitter, Craig"]
[WhiteFideId "4625242"]
[BlackFideId "2023105"]
[WhiteElo "2144"]
[BlackElo "2050"]
[Result "1-0"]
[Round "04"]
[TimeControl "180+2"]
[Date "2022.12.27"]
[WhiteClock "0:01:55"]
[BlackClock "0:00:08"]

1. c4 {[%clk 0:03:00]}  e6 {[%clk 0:02:59]} 2. Nf3 {[%clk 0:02:59]}  Nf6 {[%clk 0:02:58]} 3. d4 {[%clk 0:02:57]}  d5 {[%clk 0:02:58]} 4. Nc3 {[%clk 0:02:57]}  c6 {[%clk 0:02:58]} 5. Bg5 {[%clk 0:02:56]}  h6 {[%clk 0:02:57]} 6. Bxf6 {[%clk 0:02:56]}  Qxf6 {[%clk 0:02:58]} 7. e3 {[%clk 0:02:56]}  Bd6 {[%clk 0:02:52]} 8. Rc1 {[%clk 0:02:56]}  Nd7 {[%clk 0:02:51]} 9. Bd3 {[%clk 0:02:56]}  dxc4 {[%clk 0:02:50]} 10. Bxc4 {[%clk 0:02:56]}  O-O {[%clk 0:02:46]} 11. Ne4 {[%clk 0:02:56]}  Bb4+ {[%clk 0:02:45]} 12. Nc3 {[%clk 0:02:54]}  e5 {[%clk 0:02:39]} 13. O-O {[%clk 0:02:53]}  exd4 {[%clk 0:02:34]} 14. Qxd4 {[%clk 0:02:53]}  Qxd4 {[%clk 0:02:29]} 15. Nxd4 {[%clk 0:02:53]}  Ne5 {[%clk 0:02:27]} 16. Be2 {[%clk 0:02:53]}  Rd8 {[%clk 0:02:10]} 17. Rfd1 {[%clk 0:02:52]}  Bd7 {[%clk 0:02:07]} 18. a3 {[%clk 0:02:50]}  Be7 {[%clk 0:01:57]} 19. h3 {[%clk 0:02:45]}  Be8 {[%clk 0:01:55]} 20. Nf5 {[%clk 0:02:45]}  Bf8 {[%clk 0:01:44]} 21. f4 {[%clk 0:02:40]}  Ng6 {[%clk 0:01:35]} 22. Bc4 {[%clk 0:02:38]}  Bc5 {[%clk 0:01:03]} 23. Kf2 {[%clk 0:02:37]}  Ne7 {[%clk 0:00:23]} 24. b4 {[%clk 0:02:15]}  Nxf5 {[%clk 0:00:23]} 25. bxc5 {[%clk 0:02:14]}  Rd7 {[%clk 0:00:20]} 26. g4 {[%clk 0:02:13]}  Ne7 {[%clk 0:00:17]} 27. Rxd7 {[%clk 0:02:10]}  Bxd7 {[%clk 0:00:17]} 28. Rd1 {[%clk 0:02:07]}  Be6 {[%clk 0:00:13]} 29. Bxe6 {[%clk 0:02:06]}  fxe6 {[%clk 0:00:14]} 30. Rd7 {[%clk 0:02:06]}  Nd5 {[%clk 0:00:15]} 31. Nxd5 {[%clk 0:02:06]}  cxd5 {[%clk 0:00:14]} 32. Rxb7 {[%clk 0:02:06]}  Rc8 {[%clk 0:00:15]} 33. Rxa7 {[%clk 0:02:05]}  Rxc5 {[%clk 0:00:15]} 34. Re7 {[%clk 0:02:05]}  Rc3 {[%clk 0:00:12]} 35. Rxe6 {[%clk 0:02:03]}  Rxa3 {[%clk 0:00:11]} 36. h4 {[%clk 0:02:03]}  d4 {[%clk 0:00:11]} 37. exd4 {[%clk 0:02:02]}  Rh3 {[%clk 0:00:10]} 38. h5 {[%clk 0:02:01]}  Rd3 {[%clk 0:00:10]} 39. Re4 {[%clk 0:01:58]}  Kf7 {[%clk 0:00:10]} 40. Ke2 {[%clk 0:01:58]}  Rg3 {[%clk 0:00:10]} 41. f5 {[%clk 0:01:57]}  Kf6 {[%clk 0:00:10]} 42. Re6+ {[%clk 0:01:56]}  Kg5 {[%clk 0:00:10]} 43. Rg6+ {[%clk 0:01:55]}  Kf4 {[%clk 0:00:10]} 44. Rxg7 {[%clk 0:01:56]}  Rxg4 {[%clk 0:00:08]} 45. Rxg4+ {[%clk 0:01:55]} 1-0


[Site "https://www.chess.com"]

[Event "Titled Tuesday Blitz December 27 Early 2022"]
[White "Kleiman, Jake"]
[Black "Qashashvili, Alexandre"]
[WhiteFideId "2020041"]
[BlackFideId "13600842"]
[WhiteElo "2399"]
[BlackElo "2505"]
[Result "1-0"]
[Round "04"]
[TimeControl "180+2"]
[Date "2022.12.27"]
[WhiteClock "0:01:24"]
[BlackClock "0:01:24"]

1. Nf3 {[%clk 0:03:00]}  c6 {[%clk 0:02:52]} 2. g3 {[%clk 0:03:01]}  d5 {[%clk 0:02:50]} 3. Bg2 {[%clk 0:03:02]}  Bf5 {[%clk 0:02:49]} 4. O-O {[%clk 0:03:03]}  Nf6 {[%clk 0:02:49]} 5. d3 {[%clk 0:03:03]}  Qc8 {[%clk 0:02:48]} 6. Nbd2 {[%clk 0:03:04]}  Bh3 {[%clk 0:02:48]} 7. e4 {[%clk 0:03:03]}  dxe4 {[%clk 0:02:47]} 8. dxe4 {[%clk 0:03:03]}  h5 {[%clk 0:02:48]} 9. e5 {[%clk 0:02:55]}  Bxg2 {[%clk 0:02:47]} 10. Kxg2 {[%clk 0:02:54]}  Nd5 {[%clk 0:02:45]} 11. c4 {[%clk 0:02:52]}  Nb6 {[%clk 0:02:44]} 12. h4 {[%clk 0:02:44]}  e6 {[%clk 0:02:43]} 13. Qe2 {[%clk 0:02:43]}  N8d7 {[%clk 0:02:42]} 14. b3 {[%clk 0:02:37]}  Qc7 {[%clk 0:02:40]} 15. Bb2 {[%clk 0:02:38]}  O-O-O {[%clk 0:02:39]} 16. Ne4 {[%clk 0:02:18]}  Nc5 {[%clk 0:02:38]} 17. Rad1 {[%clk 0:02:11]}  Nxe4 {[%clk 0:02:36]} 18. Qxe4 {[%clk 0:02:09]}  Be7 {[%clk 0:02:34]} 19. Bc3 {[%clk 0:01:53]}  g6 {[%clk 0:02:30]} 20. Qf4 {[%clk 0:01:50]}  Ba3 {[%clk 0:02:06]} 21. Ng5 {[%clk 0:01:39]}  Rxd1 {[%clk 0:02:04]} 22. Rxd1 {[%clk 0:01:39]}  Rd8 {[%clk 0:01:24]} 23. Rxd8+ {[%clk 0:01:36]}  Qxd8 {[%clk 0:01:25]} 24. Qxf7 {[%clk 0:01:34]}  Qd3 {[%clk 0:01:24]} 25. Nxe6 {[%clk 0:01:24]} 1-0


[Site "https://www.chess.com"]

[Event "Titled Tuesday Blitz December 27 Early 2022"]
[White "Kowalczyk, Pawel"]
[Black "Goltsev, Dmitry"]
[WhiteFideId "1130641"]
[BlackFideId "24176710"]
[WhiteElo "2332"]
[BlackElo "2269"]
[Result "1/2-1/2"]
[Round "04"]
[TimeControl "180+2"]
[Date "2022.12.27"]
[WhiteClock "0:00:28"]
[BlackClock "0:01:15"]

1. e4 {[%clk 0:03:00]}  e6 {[%clk 0:03:00]} 2. d4 {[%clk 0:03:00]}  d5 {[%clk 0:03:01]} 3. Nd2 {[%clk 0:03:00]}  c5 {[%clk 0:03:01]} 4. Ngf3 {[%clk 0:03:00]}  Nf6 {[%clk 0:03:01]} 5. exd5 {[%clk 0:02:59]}  exd5 {[%clk 0:03:02]} 6. Bb5+ {[%clk 0:02:59]}  Nc6 {[%clk 0:03:02]} 7. O-O {[%clk 0:02:59]}  Be7 {[%clk 0:03:00]} 8. dxc5 {[%clk 0:02:59]}  Bxc5 {[%clk 0:03:01]} 9. Nb3 {[%clk 0:02:58]}  Bb6 {[%clk 0:03:01]} 10. Bg5 {[%clk 0:02:58]}  O-O {[%clk 0:03:00]} 11. c3 {[%clk 0:02:57]}  Bg4 {[%clk 0:03:00]} 12. h3 {[%clk 0:02:57]}  Bh5 {[%clk 0:03:00]} 13. Bxf6 {[%clk 0:02:55]}  Qxf6 {[%clk 0:03:00]} 14. Qxd5 {[%clk 0:02:55]}  Bg6 {[%clk 0:03:00]} 15. Bxc6 {[%clk 0:02:52]}  bxc6 {[%clk 0:03:01]} 16. Qe5 {[%clk 0:02:51]}  Qd8 {[%clk 0:02:57]} 17. Rad1 {[%clk 0:02:51]}  Qc8 {[%clk 0:02:56]} 18. Rfe1 {[%clk 0:02:50]}  Qa6 {[%clk 0:02:55]} 19. a3 {[%clk 0:02:47]}  Qa4 {[%clk 0:02:51]} 20. Nbd4 {[%clk 0:02:45]}  c5 {[%clk 0:02:47]} 21. Nf5 {[%clk 0:02:40]}  f6 {[%clk 0:02:46]} 22. Ne7+ {[%clk 0:02:34]}  Kh8 {[%clk 0:02:46]} 23. Nxg6+ {[%clk 0:02:34]}  hxg6 {[%clk 0:02:47]} 24. Qe4 {[%clk 0:02:33]}  Qxe4 {[%clk 0:02:36]} 25. Rxe4 {[%clk 0:02:33]}  g5 {[%clk 0:02:37]} 26. c4 {[%clk 0:02:31]}  Rad8 {[%clk 0:02:36]} 27. Ree1 {[%clk 0:02:30]}  Ba5 {[%clk 0:02:34]} 28. Rf1 {[%clk 0:02:28]}  Rb8 {[%clk 0:02:34]} 29. Rb1 {[%clk 0:02:27]}  Rfe8 {[%clk 0:02:33]} 30. b3 {[%clk 0:02:18]}  Re2 {[%clk 0:02:31]} 31. Rfd1 {[%clk 0:02:17]}  Ra2 {[%clk 0:02:27]} 32. Rd5 {[%clk 0:02:11]}  Re8 {[%clk 0:02:23]} 33. b4 {[%clk 0:02:06]}  Bc7 {[%clk 0:02:17]} 34. Rd2 {[%clk 0:01:55]}  Rxa3 {[%clk 0:02:13]} 35. bxc5 {[%clk 0:01:55]}  Rc3 {[%clk 0:02:10]} 36. Rd7 {[%clk 0:01:45]}  Bf4 {[%clk 0:02:03]} 37. Rxa7 {[%clk 0:01:42]}  Rxc4 {[%clk 0:02:02]} 38. g3 {[%clk 0:01:40]}  Be5 {[%clk 0:01:56]} 39. Rbb7 {[%clk 0:01:34]}  Bxg3 {[%clk 0:01:37]} 40. Rxg7 {[%clk 0:01:19]}  Rc2 {[%clk 0:01:18]} 41. Rh7+ {[%clk 0:00:32]}  Kg8 {[%clk 0:01:15]} 42. Rhg7+ {[%clk 0:00:32]}  Kh8 {[%clk 0:01:15]} 43. Rh7+ {[%clk 0:00:32]}  Kg8 {[%clk 0:01:16]} 44. Rag7+ {[%clk 0:00:30]}  Kf8 {[%clk 0:01:16]} 45. Rf7+ {[%clk 0:00:31]}  Kg8 {[%clk 0:01:16]} 46. Rhg7+ {[%clk 0:00:25]}  Kh8 {[%clk 0:01:16]} 47. Rh7+ {[%clk 0:00:26]}  Kg8 {[%clk 0:01:15]} 48. Rhg7+ {[%clk 0:00:27]}  Kh8 {[%clk 0:01:15]} 49. Rh7+ {[%clk 0:00:28]}  Kg8 {[%clk 0:01:15]} 1/2-1/2


[Site "https://www.chess.com"]

[Event "Titled Tuesday Blitz December 27 Early 2022"]
[White "Kravtsiv, Martyn"]
[Black "Lavrov, Maxim"]
[WhiteFideId "14113147"]
[BlackFideId "4166418"]
[WhiteElo "2598"]
[BlackElo "2376"]
[Result "1-0"]
[Round "04"]
[TimeControl "180+2"]
[Date "2022.12.27"]
[WhiteClock "0:01:07"]
[BlackClock "0:00:54"]

1. e4 {[%clk 0:03:00]}  e5 {[%clk 0:02:58]} 2. Nf3 {[%clk 0:03:00]}  Nc6 {[%clk 0:02:57]} 3. Nc3 {[%clk 0:03:01]}  Nf6 {[%clk 0:02:56]} 4. a4 {[%clk 0:03:01]}  a6 {[%clk 0:02:53]} 5. d4 {[%clk 0:02:58]}  exd4 {[%clk 0:02:52]} 6. Nxd4 {[%clk 0:02:59]}  Bb4 {[%clk 0:02:52]} 7. Nxc6 {[%clk 0:03:00]}  bxc6 {[%clk 0:02:52]} 8. Bd3 {[%clk 0:03:00]}  d5 {[%clk 0:02:52]} 9. Bd2 {[%clk 0:02:59]}  O-O {[%clk 0:02:48]} 10. O-O {[%clk 0:02:59]}  Re8 {[%clk 0:02:36]} 11. Re1 {[%clk 0:02:45]}  h6 {[%clk 0:02:23]} 12. Nxd5 {[%clk 0:02:40]}  cxd5 {[%clk 0:02:17]} 13. Bxb4 {[%clk 0:02:39]}  dxe4 {[%clk 0:02:17]} 14. Bf1 {[%clk 0:02:34]}  Bg4 {[%clk 0:02:11]} 15. Qxd8 {[%clk 0:02:32]}  Rexd8 {[%clk 0:02:09]} 16. h3 {[%clk 0:02:30]}  Be6 {[%clk 0:02:08]} 17. a5 {[%clk 0:02:27]}  Nd5 {[%clk 0:02:07]} 18. Bc5 {[%clk 0:02:27]}  f5 {[%clk 0:02:06]} 19. Rad1 {[%clk 0:02:25]}  Kf7 {[%clk 0:02:05]} 20. Rd4 {[%clk 0:02:15]}  Nf6 {[%clk 0:02:01]} 21. Red1 {[%clk 0:02:05]}  Rxd4 {[%clk 0:01:59]} 22. Rxd4 {[%clk 0:02:06]}  Nd7 {[%clk 0:01:58]} 23. Ba3 {[%clk 0:02:02]}  Ne5 {[%clk 0:01:51]} 24. b4 {[%clk 0:01:52]}  c5 {[%clk 0:01:38]} 25. bxc5 {[%clk 0:01:50]}  Nc6 {[%clk 0:01:38]} 26. Rd6 {[%clk 0:01:46]}  Nxa5 {[%clk 0:01:36]} 27. Rxa6 {[%clk 0:01:44]}  Rxa6 {[%clk 0:01:35]} 28. Bxa6 {[%clk 0:01:45]}  Bc4 {[%clk 0:01:35]} 29. Bc8 {[%clk 0:01:24]}  Be6 {[%clk 0:01:35]} 30. Bxe6+ {[%clk 0:01:25]}  Kxe6 {[%clk 0:01:35]} 31. Bb2 {[%clk 0:01:25]}  g5 {[%clk 0:01:29]} 32. g4 {[%clk 0:01:25]}  Nc6 {[%clk 0:01:16]} 33. Bg7 {[%clk 0:01:23]}  f4 {[%clk 0:01:03]} 34. Bxh6 {[%clk 0:01:21]}  Kf6 {[%clk 0:01:03]} 35. h4 {[%clk 0:01:12]}  gxh4 {[%clk 0:01:02]} 36. Bxf4 {[%clk 0:01:13]}  Nd4 {[%clk 0:01:02]} 37. Kg2 {[%clk 0:01:13]}  Nxc2 {[%clk 0:00:57]} 38. c6 {[%clk 0:01:13]}  Ke6 {[%clk 0:00:57]} 39. Kh3 {[%clk 0:01:10]}  Nd4 {[%clk 0:00:56]} 40. c7 {[%clk 0:01:09]}  Kd7 {[%clk 0:00:55]} 41. Kxh4 {[%clk 0:01:10]}  Ne6 {[%clk 0:00:54]} 42. Bg3 {[%clk 0:01:07]} 1-0


[Site "https://www.chess.com"]